[Event "Late-Titled-Tuesday-Blitz-October-17-2023"]
[Site "Chess.com"]
[Date "2023.10.17"]
[Round "1"]
[White "Lennis93"]
[Black "JacksterThePro"]
[Result "1/2-1/2"]
[WhiteElo "2696"]
[BlackElo "2393"]
[TimeControl "180+1"]
[EndTime "14:08:22 PDT"]
[Termination "Game drawn - insufficient material"]

1. c4 {[%clk 0:02:54.6]} 1... c5 {[%clk 0:02:53.7]} 2. g3 {[%clk 0:02:54.7]}
2... g6 {[%clk 0:02:53.3]} 3. Bg2 {[%clk 0:02:55.4]} 3... Bg7 {[%clk 0:02:53.7]}
4. Nc3 {[%clk 0:02:56]} 4... Nc6 {[%clk 0:02:53.9]} 5. a3 {[%clk 0:02:56.5]}
5... a5 {[%clk 0:02:53.2]} 6. d3 {[%clk 0:02:55.3]} 6... d6 {[%clk 0:02:52.9]}
7. e3 {[%clk 0:02:52.1]} 7... e5 {[%clk 0:02:51.8]} 8. Nge2 {[%clk 0:02:52.5]}
8... Nge7 {[%clk 0:02:50.3]} 9. d4 {[%clk 0:02:43.4]} 9... exd4 {[%clk
0:02:42.2]} 10. exd4 {[%clk 0:02:43.2]} 10... cxd4 {[%clk 0:02:41.1]} 11. Nb5
{[%clk 0:02:42.8]} 11... O-O {[%clk 0:02:37.6]} 12. Nexd4 {[%clk 0:02:41.1]}
12... d5 {[%clk 0:02:13.6]} 13. O-O {[%clk 0:02:39]} 13... Nxd4 {[%clk
0:02:04.9]} 14. Nxd4 {[%clk 0:02:39.9]} 14... dxc4 {[%clk 0:02:04.9]} 15. Nb5
{[%clk 0:02:29.7]} 15... Bf5 {[%clk 0:01:54.2]} 16. Bg5 {[%clk 0:02:29.3]} 16...
Qxd1 {[%clk 0:01:38.5]} 17. Raxd1 {[%clk 0:02:26.7]} 17... Nc6 {[%clk
0:01:38.8]} 18. Bc1 {[%clk 0:01:58.5]} 18... Rad8 {[%clk 0:01:24]} 19. Nd6
{[%clk 0:01:57.6]} 19... Nd4 {[%clk 0:01:07.6]} 20. Nxb7 {[%clk 0:01:49.3]}
20... Ne2+ {[%clk 0:01:02.4]} 21. Kh1 {[%clk 0:01:48.9]} 21... Rxd1 {[%clk
0:01:02.9]} 22. Rxd1 {[%clk 0:01:48.9]} 22... Nxc1 {[%clk 0:00:59.3]} 23. Rxc1
{[%clk 0:01:48.9]} 23... Bd3 {[%clk 0:00:47.9]} 24. Nxa5 {[%clk 0:01:40.1]}
24... Bxb2 {[%clk 0:00:46.3]} 25. Rxc4 {[%clk 0:01:37.6]} 25... Bxc4 {[%clk
0:00:42.8]} 26. Nxc4 {[%clk 0:01:38.5]} 26... Rd8 {[%clk 0:00:19.1]} 27. Bc6
{[%clk 0:01:28.9]} 27... Rd1+ {[%clk 0:00:13.9]} 28. Kg2 {[%clk 0:01:29.1]}
28... Rc1 {[%clk 0:00:12.5]} 29. Bb5 {[%clk 0:01:29]} 29... Bd4 {[%clk 0:00:11]}
30. f4 {[%clk 0:01:25.2]} 30... Bc5 {[%clk 0:00:10.9]} 31. a4 {[%clk 0:01:24.7]}
31... Bb4 {[%clk 0:00:07.6]} 32. h4 {[%clk 0:01:21.2]} 32... h5 {[%clk
0:00:07.5]} 33. Kf3 {[%clk 0:01:21.5]} 33... Kg7 {[%clk 0:00:07.6]} 34. f5
{[%clk 0:01:19.6]} 34... Kf6 {[%clk 0:00:06.1]} 35. Ne3 {[%clk 0:01:20.2]} 35...
Rc3 {[%clk 0:00:05.7]} 36. Ke4 {[%clk 0:01:20.1]} 36... gxf5+ {[%clk 0:00:04.5]}
37. Nxf5 {[%clk 0:01:20.4]} 37... Ra3 {[%clk 0:00:03.8]} 38. Ne3 {[%clk
0:01:18.8]} 38... Be1 {[%clk 0:00:03]} 39. Nd5+ {[%clk 0:01:19.1]} 39... Kg7
{[%clk 0:00:02.9]} 40. Nf4 {[%clk 0:01:19.7]} 40... Kh6 {[%clk 0:00:01.9]} 41.
Be8 {[%clk 0:01:10.2]} 41... Bxg3 {[%clk 0:00:02.2]} 42. Nd5 {[%clk 0:01:07.6]}
42... Bxh4 {[%clk 0:00:02]} 43. Bxf7 {[%clk 0:01:05.7]} 43... Rxa4+ {[%clk
0:00:02.2]} 44. Kf3 {[%clk 0:01:05.9]} 44... Rg4 {[%clk 0:00:02.5]} 45. Nf4
{[%clk 0:01:04.6]} 45... Bg5 {[%clk 0:00:03.4]} 46. Nxh5 {[%clk 0:01:03.4]}
46... Ra4 {[%clk 0:00:03.7]} 47. Ng3 {[%clk 0:01:01.8]} 47... Ra3+ {[%clk
0:00:04.6]} 48. Kg2 {[%clk 0:00:59.6]} 48... Kg7 {[%clk 0:00:05.5]} 49. Bd5
{[%clk 0:00:59]} 49... Kf6 {[%clk 0:00:05.4]} 50. Bf3 {[%clk 0:00:56.1]} 50...
Bf4 {[%clk 0:00:03.9]} 51. Ne4+ {[%clk 0:00:55.5]} 51... Ke5 {[%clk 0:00:04]}
52. Nf2 {[%clk 0:00:41.4]} 52... Ra2 {[%clk 0:00:03.6]} 53. Kf1 {[%clk
0:00:41.5]} 53... Be3 {[%clk 0:00:03.2]} 54. Nd3+ {[%clk 0:00:38.9]} 54... Kd4
{[%clk 0:00:03.5]} 55. Be2 {[%clk 0:00:38.4]} 55... Rd2 {[%clk 0:00:02.5]} 56.
Nb4 {[%clk 0:00:34.3]} 56... Ke4 {[%clk 0:00:02]} 57. Nd3 {[%clk 0:00:34.2]}
57... Kd4 {[%clk 0:00:01.2]} 58. Ne1 {[%clk 0:00:32.3]} 58... Ra2 {[%clk
0:00:01.1]} 59. Nd3 {[%clk 0:00:30.5]} 59... Ra1+ {[%clk 0:00:02]} 60. Kg2
{[%clk 0:00:30.5]} 60... Bf4 {[%clk 0:00:02.4]} 61. Nxf4 {[%clk 0:00:28.5]}
61... Ke3 {[%clk 0:00:03.3]} 62. Kg3 {[%clk 0:00:23.4]} 62... Rg1+ {[%clk
0:00:03.5]} 63. Kh2 {[%clk 0:00:23.7]} 63... Kxf4 {[%clk 0:00:02.1]} 64. Kxg1
{[%clk 0:00:23.6]} 1/2-1/2

[Event "Late-Titled-Tuesday-Blitz-October-17-2023"]
[Site "Chess.com"]
[Date "2023.10.17"]
[Round "1"]
[White "Deeper44"]
[Black "ToddBryant"]
[Result "1-0"]
[WhiteElo "2635"]
[BlackElo "2335"]
[TimeControl "180+1"]
[EndTime "14:08:23 PDT"]
[Termination "Deeper44 won on time"]

1. d4 {[%clk 0:02:59.9]} 1... Nf6 {[%clk 0:02:57.6]} 2. c4 {[%clk 0:02:58.7]}
2... g6 {[%clk 0:02:57.7]} 3. g3 {[%clk 0:02:59]} 3... Bg7 {[%clk 0:02:55]} 4.
Bg2 {[%clk 0:02:59.5]} 4... O-O {[%clk 0:02:53.7]} 5. Nf3 {[%clk 0:02:59.9]}
5... d6 {[%clk 0:02:54.3]} 6. O-O {[%clk 0:02:59.5]} 6... c5 {[%clk 0:02:55]} 7.
d5 {[%clk 0:02:59.7]} 7... e6 {[%clk 0:02:51.5]} 8. Nc3 {[%clk 0:03:00]} 8...
Re8 {[%clk 0:02:51.9]} 9. h3 {[%clk 0:02:53.8]} 9... exd5 {[%clk 0:02:50.2]} 10.
cxd5 {[%clk 0:02:54.7]} 10... a6 {[%clk 0:02:45.2]} 11. a4 {[%clk 0:02:54.4]}
11... Nbd7 {[%clk 0:02:45.3]} 12. Nd2 {[%clk 0:02:52.8]} 12... Ne5 {[%clk
0:02:41.8]} 13. f4 {[%clk 0:02:52.3]} 13... Ned7 {[%clk 0:02:35]} 14. e4 {[%clk
0:02:48.9]} 14... Rb8 {[%clk 0:02:29.9]} 15. Nc4 {[%clk 0:02:46.6]} 15... Nf8
{[%clk 0:02:21]} 16. e5 {[%clk 0:02:42.7]} 16... dxe5 {[%clk 0:02:09.2]} 17.
fxe5 {[%clk 0:02:42.3]} 17... N6d7 {[%clk 0:02:09.4]} 18. Qf3 {[%clk 0:01:38.7]}
18... Nxe5 {[%clk 0:01:44.1]} 19. Nxe5 {[%clk 0:01:34.5]} 19... Bxe5 {[%clk
0:01:45]} 20. Qxf7+ {[%clk 0:01:31.6]} 20... Kh8 {[%clk 0:01:45.2]} 21. Bh6
{[%clk 0:00:56]} 21... Bf5 {[%clk 0:01:29.5]} 22. Rxf5 {[%clk 0:00:43.1]} 22...
gxf5 {[%clk 0:01:26.1]} 23. Qxf5 {[%clk 0:00:41.4]} 23... Qf6 {[%clk 0:01:18.5]}
24. Qh5 {[%clk 0:00:25.3]} 24... Bxg3 {[%clk 0:00:58.6]} 25. Rf1 {[%clk
0:00:24.6]} 25... Qg6 {[%clk 0:00:52.6]} 26. Qf3 {[%clk 0:00:22.3]} 26... Nd7
{[%clk 0:00:32.4]} 27. Bd2 {[%clk 0:00:19.1]} 27... Rf8 {[%clk 0:00:30]} 28. Qg4
{[%clk 0:00:15.8]} 28... Qxg4 {[%clk 0:00:28]} 29. hxg4 {[%clk 0:00:16.7]} 29...
Be5 {[%clk 0:00:27]} 30. Ne4 {[%clk 0:00:14.4]} 30... Bd4+ {[%clk 0:00:27.1]}
31. Kh2 {[%clk 0:00:14]} 31... Ne5 {[%clk 0:00:28]} 32. Kh3 {[%clk 0:00:12.2]}
32... Rxf1 {[%clk 0:00:27.2]} 33. Bxf1 {[%clk 0:00:12.2]} 33... Rf8 {[%clk
0:00:28.1]} 34. Bg2 {[%clk 0:00:12.6]} 34... Nf3 {[%clk 0:00:21.7]} 35. Bh6
{[%clk 0:00:11.5]} 35... Rf7 {[%clk 0:00:20.1]} 36. Nd6 {[%clk 0:00:09.8]} 36...
Rf6 {[%clk 0:00:16.8]} 37. Nf5 {[%clk 0:00:10.4]} 37... Ng1+ {[%clk 0:00:10.3]}
38. Kh4 {[%clk 0:00:10.5]} 38... Bf2+ {[%clk 0:00:09.4]} 39. Kg5 {[%clk
0:00:09.2]} 39... Rg6+ {[%clk 0:00:08.9]} 40. Kf4 {[%clk 0:00:09.7]} 40... Be1
{[%clk 0:00:08]} 41. d6 {[%clk 0:00:08.7]} 41... Bd2+ {[%clk 0:00:08]} 42. Ke5
{[%clk 0:00:08.9]} 42... Bxh6 {[%clk 0:00:07.9]} 43. Nxh6 {[%clk 0:00:09.2]}
43... Rg5+ {[%clk 0:00:04.5]} 44. Nf5 {[%clk 0:00:08.9]} 44... Rg8 {[%clk
0:00:04.1]} 45. d7 {[%clk 0:00:08]} 45... Ne2 {[%clk 0:00:04.2]} 46. Bxb7 {[%clk
0:00:06]} 46... Nd4 {[%clk 0:00:01.9]} 47. Nxd4 {[%clk 0:00:05]} 47... cxd4
{[%clk 0:00:02.8]} 48. Kxd4 {[%clk 0:00:05.7]} 48... Kg7 {[%clk 0:00:03]} 49.
Ke5 {[%clk 0:00:05.8]} 49... Rd8 {[%clk 0:00:01.9]} 50. Kd6 {[%clk 0:00:05.6]}
50... Kf6 {[%clk 0:00:01.9]} 51. Be4 {[%clk 0:00:04.2]} 51... h6 {[%clk
0:00:01.7]} 52. b4 {[%clk 0:00:04.7]} 1-0

[Event "Late-Titled-Tuesday-Blitz-October-17-2023"]
[Site "Chess.com"]
[Date "2023.10.17"]
[Round "1"]
[White "MAGMAchess02"]
[Black "TanitoluwaAps116"]
[Result "1-0"]
[WhiteElo "2353"]
[BlackElo "2622"]
[TimeControl "180+1"]
[EndTime "14:08:40 PDT"]
[Termination "MAGMAchess02 won by checkmate"]

1. Nf3 {[%clk 0:02:59.2]} 1... Nf6 {[%clk 0:02:47.6]} 2. c4 {[%clk 0:02:58.2]}
2... e6 {[%clk 0:02:44.8]} 3. g3 {[%clk 0:02:57.8]} 3... b6 {[%clk 0:02:21.7]}
4. Bg2 {[%clk 0:02:55.7]} 4... Bb7 {[%clk 0:02:21.9]} 5. O-O {[%clk 0:02:55.8]}
5... Be7 {[%clk 0:02:18.1]} 6. b3 {[%clk 0:02:55.9]} 6... O-O {[%clk 0:02:18]}
7. Bb2 {[%clk 0:02:56.7]} 7... d5 {[%clk 0:02:18.7]} 8. e3 {[%clk 0:02:56.5]}
8... dxc4 {[%clk 0:02:16.6]} 9. bxc4 {[%clk 0:02:57.4]} 9... c5 {[%clk
0:02:17.2]} 10. Qc2 {[%clk 0:02:58]} 10... Nc6 {[%clk 0:02:17.3]} 11. d3 {[%clk
0:02:57.6]} 11... Nb4 {[%clk 0:02:16.7]} 12. Qc3 {[%clk 0:02:56.9]} 12... Qxd3
{[%clk 0:02:13.1]} 13. a3 {[%clk 0:02:54.9]} 13... Qxc3 {[%clk 0:02:10.8]} 14.
Bxc3 {[%clk 0:02:55.8]} 14... Nc6 {[%clk 0:01:55.8]} 15. Nbd2 {[%clk 0:02:40.8]}
15... Rfd8 {[%clk 0:01:48.7]} 16. Rfd1 {[%clk 0:02:38.9]} 16... Rac8 {[%clk
0:01:42.2]} 17. Nb3 {[%clk 0:02:29.9]} 17... Kf8 {[%clk 0:01:35.2]} 18. a4
{[%clk 0:02:18.2]} 18... Ba6 {[%clk 0:01:33.5]} 19. Nfd2 {[%clk 0:02:04.7]}
19... Rd3 {[%clk 0:01:25]} 20. Rdc1 {[%clk 0:02:03.3]} 20... Ke8 {[%clk
0:01:20.9]} 21. a5 {[%clk 0:01:56.3]} 21... Bb7 {[%clk 0:00:46.6]} 22. Ne4
{[%clk 0:01:47.8]} 22... Nxe4 {[%clk 0:00:39.8]} 23. Bxe4 {[%clk 0:01:48]} 23...
Rxc3 {[%clk 0:00:40.5]} 24. Rxc3 {[%clk 0:01:44.6]} 24... Bf6 {[%clk 0:00:40.9]}
25. Rcc1 {[%clk 0:01:31]} 25... Bxa1 {[%clk 0:00:39.7]} 26. Bxc6+ {[%clk
0:01:23.5]} 26... Bxc6 {[%clk 0:00:26.5]} 27. Rxa1 {[%clk 0:01:24.4]} 27... b5
{[%clk 0:00:26.9]} 28. Rc1 {[%clk 0:01:13.6]} 28... bxc4 {[%clk 0:00:20.5]} 29.
Nd2 {[%clk 0:01:04.9]} 29... c3 {[%clk 0:00:14.4]} 30. Rxc3 {[%clk 0:01:02.2]}
30... Bd5 {[%clk 0:00:10.7]} 31. e4 {[%clk 0:01:00]} 31... Bb7 {[%clk
0:00:10.8]} 32. f4 {[%clk 0:00:59.2]} 32... Ke7 {[%clk 0:00:11.1]} 33. Kf2
{[%clk 0:00:59.4]} 33... Kd6 {[%clk 0:00:10.7]} 34. Ke3 {[%clk 0:00:59.9]} 34...
f6 {[%clk 0:00:10.7]} 35. Nc4+ {[%clk 0:00:59.4]} 35... Ke7 {[%clk 0:00:11.2]}
36. h4 {[%clk 0:00:43.6]} 36... Ba6 {[%clk 0:00:10.6]} 37. Nd2 {[%clk
0:00:38.6]} 37... Kd6 {[%clk 0:00:09.3]} 38. Nf3 {[%clk 0:00:38.4]} 38... Bb5
{[%clk 0:00:08.4]} 39. h5 {[%clk 0:00:36.8]} 39... a6 {[%clk 0:00:06.2]} 40. g4
{[%clk 0:00:37]} 40... Kc6 {[%clk 0:00:04.9]} 41. g5 {[%clk 0:00:32.2]} 41...
Rd8 {[%clk 0:00:04.8]} 42. h6 {[%clk 0:00:29.7]} 42... fxg5 {[%clk 0:00:02.8]}
43. Nxg5 {[%clk 0:00:21.4]} 43... gxh6 {[%clk 0:00:02.8]} 44. Nxe6 {[%clk
0:00:22.1]} 44... Re8 {[%clk 0:00:03.5]} 45. Nxc5 {[%clk 0:00:21.2]} 45... Kd6
{[%clk 0:00:04.1]} 46. Rc1 {[%clk 0:00:17.9]} 46... h5 {[%clk 0:00:03.1]} 47.
e5+ {[%clk 0:00:16.6]} 47... Kd5 {[%clk 0:00:03.3]} 48. Ne4 {[%clk 0:00:16.8]}
48... Re7 {[%clk 0:00:02.2]} 49. Nf6+ {[%clk 0:00:15.2]} 49... Ke6 {[%clk
0:00:02.7]} 50. Ke4 {[%clk 0:00:16.1]} 50... Rf7 {[%clk 0:00:02.3]} 51. f5+
{[%clk 0:00:16]} 51... Ke7 {[%clk 0:00:03]} 52. Rc7+ {[%clk 0:00:14.5]} 52...
Kf8 {[%clk 0:00:03.6]} 53. Nxh7+ {[%clk 0:00:11.9]} 53... Kg7 {[%clk 0:00:03.2]}
54. Rxf7+ {[%clk 0:00:12.1]} 54... Kxf7 {[%clk 0:00:04]} 55. e6+ {[%clk
0:00:12.3]} 55... Kg7 {[%clk 0:00:03.7]} 56. Ng5 {[%clk 0:00:09.3]} 56... Kf6
{[%clk 0:00:04.1]} 57. Nh3 {[%clk 0:00:08.3]} 57... Bc6+ {[%clk 0:00:03.6]} 58.
Kf4 {[%clk 0:00:09.1]} 58... Bb5 {[%clk 0:00:03.3]} 59. Ng5 {[%clk 0:00:09.8]}
59... Bd3 {[%clk 0:00:02.8]} 60. Ne4+ {[%clk 0:00:10.4]} 60... Ke7 {[%clk
0:00:03.5]} 61. Ke5 {[%clk 0:00:11]} 61... h4 {[%clk 0:00:02]} 62. f6+ {[%clk
0:00:11.8]} 62... Ke8 {[%clk 0:00:02.7]} 63. Ng5 {[%clk 0:00:12.4]} 63... Bg6
{[%clk 0:00:02.3]} 64. Kd6 {[%clk 0:00:13]} 64... h3 {[%clk 0:00:02.1]} 65. f7+
{[%clk 0:00:13.9]} 65... Kf8 {[%clk 0:00:02.6]} 66. e7+ {[%clk 0:00:14.2]} 66...
Kg7 {[%clk 0:00:02.7]} 67. f8=Q# {[%clk 0:00:15.1]} 1-0

[Event "Late-Titled-Tuesday-Blitz-October-17-2023"]
[Site "Chess.com"]
[Date "2023.10.17"]
[Round "1"]
[White "kai_nov"]
[Black "mac0504"]
[Result "1-0"]
[WhiteElo "2287"]
[BlackElo "2567"]
[TimeControl "180+1"]
[EndTime "14:09:04 PDT"]
[Termination "kai_nov won by checkmate"]

1. d4 {[%clk 0:03:00.9]} 1... b6 {[%clk 0:02:58.7]} 2. c4 {[%clk 0:02:57]} 2...
Bb7 {[%clk 0:02:58.8]} 3. Nc3 {[%clk 0:02:56.7]} 3... e6 {[%clk 0:02:59.3]} 4.
a3 {[%clk 0:02:56.8]} 4... Nf6 {[%clk 0:02:58.2]} 5. d5 {[%clk 0:02:57.3]} 5...
g6 {[%clk 0:02:56.4]} 6. g3 {[%clk 0:02:56.3]} 6... Bg7 {[%clk 0:02:56.7]} 7.
Bg2 {[%clk 0:02:56.7]} 7... O-O {[%clk 0:02:56]} 8. Nf3 {[%clk 0:02:55.4]} 8...
Na6 {[%clk 0:02:49.5]} 9. O-O {[%clk 0:02:53.1]} 9... Nc5 {[%clk 0:02:49.9]} 10.
Re1 {[%clk 0:02:38.4]} 10... a5 {[%clk 0:02:29.2]} 11. Bg5 {[%clk 0:02:31.3]}
11... h6 {[%clk 0:02:28.1]} 12. Be3 {[%clk 0:02:30.5]} 12... Ng4 {[%clk
0:02:21.2]} 13. Bd4 {[%clk 0:02:28.6]} 13... e5 {[%clk 0:02:19.7]} 14. Bxc5
{[%clk 0:02:22.9]} 14... bxc5 {[%clk 0:02:20.6]} 15. h3 {[%clk 0:02:22.7]} 15...
Nf6 {[%clk 0:02:20.7]} 16. Nxe5 {[%clk 0:02:23]} 16... Re8 {[%clk 0:02:07.2]}
17. Nd3 {[%clk 0:02:13.3]} 17... d6 {[%clk 0:02:07.8]} 18. e4 {[%clk 0:02:02.5]}
18... Nd7 {[%clk 0:02:07.6]} 19. Qd2 {[%clk 0:01:53.7]} 19... Ba6 {[%clk
0:02:05.6]} 20. b3 {[%clk 0:01:49]} 20... a4 {[%clk 0:02:00.3]} 21. Nxa4 {[%clk
0:01:38.5]} 21... Bxa1 {[%clk 0:02:00.1]} 22. Rxa1 {[%clk 0:01:39.4]} 22... Bxc4
{[%clk 0:02:00.6]} 23. Naxc5 {[%clk 0:01:19]} 23... dxc5 {[%clk 0:01:22.2]} 24.
bxc4 {[%clk 0:01:17.4]} 24... Qf6 {[%clk 0:01:22.9]} 25. Ra2 {[%clk 0:01:07.5]}
25... Qd4 {[%clk 0:01:23]} 26. Qc2 {[%clk 0:00:53.7]} 26... Nb6 {[%clk
0:01:17.3]} 27. e5 {[%clk 0:00:41.7]} 27... Nxc4 {[%clk 0:01:12.7]} 28. d6
{[%clk 0:00:41.9]} 28... Rad8 {[%clk 0:01:05]} 29. dxc7 {[%clk 0:00:38.2]} 29...
Rc8 {[%clk 0:01:05.6]} 30. Nf4 {[%clk 0:00:21.4]} 30... Nxe5 {[%clk 0:00:59.2]}
31. Nd5 {[%clk 0:00:20.1]} 31... Nd3 {[%clk 0:00:42.7]} 32. a4 {[%clk
0:00:12.6]} 32... Re1+ {[%clk 0:00:17.4]} 33. Kh2 {[%clk 0:00:12]} 33... Nb4
{[%clk 0:00:07.9]} 34. Qd2 {[%clk 0:00:10.6]} 34... Rd1 {[%clk 0:00:02]} 35.
Qxd4 {[%clk 0:00:09.1]} 35... Rxd4 {[%clk 0:00:02.9]} 36. Ne7+ {[%clk
0:00:09.4]} 36... Kg7 {[%clk 0:00:01.7]} 37. Nxc8 {[%clk 0:00:10.3]} 37... Na6
{[%clk 0:00:02]} 38. Nb6 {[%clk 0:00:09.7]} 38... Nxc7 {[%clk 0:00:02.3]} 39. a5
{[%clk 0:00:09.4]} 39... Na6 {[%clk 0:00:02.7]} 40. Bf1 {[%clk 0:00:08.7]} 40...
Nb8 {[%clk 0:00:03.1]} 41. a6 {[%clk 0:00:08.7]} 41... Nc6 {[%clk 0:00:02.8]}
42. a7 {[%clk 0:00:08.5]} 42... Nxa7 {[%clk 0:00:02.9]} 43. Rxa7 {[%clk
0:00:09.3]} 43... Rd2 {[%clk 0:00:03.4]} 44. Kg2 {[%clk 0:00:08.9]} 44... Rb2
{[%clk 0:00:03.6]} 45. Nd5 {[%clk 0:00:07.7]} 45... Rc2 {[%clk 0:00:04.3]} 46.
Nf4 {[%clk 0:00:07.7]} 46... h5 {[%clk 0:00:04.4]} 47. Rc7 {[%clk 0:00:08.1]}
47... Rc1 {[%clk 0:00:04.4]} 48. Bd3 {[%clk 0:00:08.1]} 48... Kf6 {[%clk
0:00:04.6]} 49. Nd5+ {[%clk 0:00:07.9]} 49... Ke6 {[%clk 0:00:04.5]} 50. Ne3
{[%clk 0:00:08.5]} 50... Rc3 {[%clk 0:00:04.3]} 51. Bc4+ {[%clk 0:00:08.7]}
51... Kd6 {[%clk 0:00:05]} 52. Rxf7 {[%clk 0:00:09.2]} 52... g5 {[%clk
0:00:05.6]} 53. Rf6+ {[%clk 0:00:09.1]} 53... Ke5 {[%clk 0:00:06.5]} 54. Rf5+
{[%clk 0:00:09.4]} 54... Kd4 {[%clk 0:00:07.4]} 55. Rd5+ {[%clk 0:00:09.4]}
55... Ke4 {[%clk 0:00:07.7]} 56. Rxc5 {[%clk 0:00:09.3]} 56... Kd4 {[%clk
0:00:08]} 57. Rd5+ {[%clk 0:00:08.6]} 57... Ke4 {[%clk 0:00:08.5]} 58. Rxg5
{[%clk 0:00:09.5]} 58... Rc2 {[%clk 0:00:08.9]} 59. Rxh5 {[%clk 0:00:09.6]}
59... Rc1 {[%clk 0:00:09.1]} 60. Rh4+ {[%clk 0:00:08.8]} 60... Ke5 {[%clk
0:00:09]} 61. Rf4 {[%clk 0:00:09.7]} 61... Rc3 {[%clk 0:00:08.5]} 62. h4 {[%clk
0:00:10.6]} 62... Rc1 {[%clk 0:00:08.7]} 63. h5 {[%clk 0:00:11.1]} 63... Ra1
{[%clk 0:00:09.6]} 64. h6 {[%clk 0:00:10.9]} 64... Ra7 {[%clk 0:00:10.5]} 65. h7
{[%clk 0:00:11.1]} 65... Rxh7 {[%clk 0:00:11.1]} 66. Rg4 {[%clk 0:00:09.8]}
66... Rc7 {[%clk 0:00:12]} 67. Rg6 {[%clk 0:00:09.8]} 67... Kd4 {[%clk
0:00:12.2]} 68. Re6 {[%clk 0:00:09.8]} 68... Kc3 {[%clk 0:00:13.1]} 69. g4
{[%clk 0:00:10.2]} 69... Rc5 {[%clk 0:00:13.5]} 70. Kg3 {[%clk 0:00:10.1]} 70...
Kd4 {[%clk 0:00:14.4]} 71. Kf4 {[%clk 0:00:09.9]} 71... Rc8 {[%clk 0:00:15.3]}
72. g5 {[%clk 0:00:10.2]} 72... Rf8+ {[%clk 0:00:16.2]} 73. Kg3 {[%clk
0:00:10.3]} 73... Kc5 {[%clk 0:00:17]} 74. g6 {[%clk 0:00:10.6]} 74... Kd4
{[%clk 0:00:17.7]} 75. Ng4 {[%clk 0:00:10.5]} 75... Kxc4 {[%clk 0:00:16.5]} 76.
f4 {[%clk 0:00:10.9]} 76... Kd5 {[%clk 0:00:17]} 77. Rf6 {[%clk 0:00:11.2]}
77... Re8 {[%clk 0:00:16.7]} 78. Kh4 {[%clk 0:00:11.1]} 78... Rh8+ {[%clk
0:00:16.3]} 79. Kg5 {[%clk 0:00:11.4]} 79... Rg8 {[%clk 0:00:16.6]} 80. Rf7
{[%clk 0:00:11.2]} 80... Ke4 {[%clk 0:00:17.5]} 81. g7 {[%clk 0:00:11.1]} 81...
Kf3 {[%clk 0:00:16.9]} 82. Nf6 {[%clk 0:00:11.1]} 82... Rxg7+ {[%clk 0:00:15.9]}
83. Rxg7 {[%clk 0:00:12]} 83... Kg3 {[%clk 0:00:16.7]} 84. Re7 {[%clk
0:00:12.4]} 84... Kf2 {[%clk 0:00:17.6]} 85. Kg4 {[%clk 0:00:12.1]} 85... Kf1
{[%clk 0:00:17.7]} 86. Kg3 {[%clk 0:00:12.1]} 86... Kg1 {[%clk 0:00:18.2]} 87.
Re1# {[%clk 0:00:12.6]} 1-0